Workbook

Sheet individual
A1: Name | B1: Tyler.Bozak
A3: Row Labels | B3: TOI/Gm | C3: iHSC | D3: iSC | E3: iFF | G3: TOI/Gm | H3: iHSC | I3: iSC | J3: iFF
A4: 2009-10-13 | B4: 2 | C4: 1 | D4: 1 | E4: 1
A5: 2010-01-12 | B5: 2.9 | C5: 0 | D5: 0 | E5: 0
A6: 2010-01-14 | B6: 1.8 | C6: 0 | D6: 0 | E6: 0
A7: 2010-01-15 | B7: 6.5 | C7: 0 | D7: 0 | E7: 0
A8: 2010-01-18 | B8: 2.5 | C8: 0 | D8: 0 | E8: 0
A9: 2010-01-19 | B9: 2.9 | C9: 0 | D9: 1 | E9: 1
A10: 2010-01-21 | B10: 5.6 | C10: 0 | D10: 0 | E10: 0
A11: 2010-01-23 | B11: 4.2 | C11: 0 | D11: 0 | E11: 0
A12: 2010-01-26 | B12: 1.3 | C12: 0 | D12: 0 | E12: 1
A13: 2010-01-29 | B13: 1.2 | C13: 0 | D13: 0 | E13: 0
A14: 2010-01-30 | B14: 3.3 | C14: 0 | D14: 0 | E14: 0
A15: 2010-02-02 | B15: 2.8 | C15: 0 | D15: 0 | E15: 0
A16: 2010-02-05 | B16: 3.9 | C16: 0 | D16: 0 | E16: 1
A17: 2010-02-06 | B17: 5.3 | C17: 0 | D17: 0 | E17: 0
A18: 2010-02-08 | B18: 3 | C18: 1 | D18: 3 | E18: 2
A19: 2010-02-12 | B19: 6.5 | C19: 0 | D19: 0 | E19: 0
A20: 2010-03-02 | B20: 4.2 | C20: 0 | D20: 0 | E20: 0
A21: 2010-03-04 | B21: 3 | C21: 0 | D21: 1 | E21: 1
A22: 2010-03-06 | B22: 7.6 | C22: 0 | D22: 0 | E22: 0
A23: 2010-03-07 | B23: 5.1 | C23: 0 | D23: 0 | E23: 0 | G23: =AVERAGE(B4:B23) -> 3.78 | H23: =AVERAGE(C4:C23) -> 0.1 | I23: 0.3 | J23: 0.35
A24: 2010-03-09 | B24: 2.3 | C24: 0 | D24: 0 | E24: 0 | G24: =AVERAGE(B5:B24) -> 3.795 | H24: =AVERAGE(C5:C24) -> 0.05 | I24: =AVERAGE(D5:D24) -> 0.25 | J24: 0.3
A25: 2010-03-11 | B25: 1.7 | C25: 0 | D25: 0 | E25: 0 | G25: 3.735 | H25: 0.05 | I25: 0.25 | J25: 0.3
A26: 2010-03-13 | B26: 6.6 | C26: 0 | D26: 2 | E26: 2 | G26: 3.975 | H26: 0.05 | I26: 0.35 | J26: 0.4
A27: 2010-03-14 | B27: 6.8 | C27: 2 | D27: 2 | E27: 2 | G27: 3.99 | H27: 0.15 | I27: 0.45 | J27: 0.5
A28: 2010-03-16 | B28: 5.2 | C28: 0 | D28: 0 | E28: 0 | G28: 4.125 | H28: 0.15 | I28: 0.45 | J28: 0.5
A29: 2010-03-18 | B29: 3.6 | C29: 1 | D29: 3 | E29: 2 | G29: 4.16 | H29: 0.2 | I29: 0.55 | J29: 0.55
A30: 2010-03-20 | B30: 1 | C30: 1 | D30: 1 | E30: 1 | G30: 3.93 | H30: 0.25 | I30: 0.6 | J30: 0.6
A31: 2010-03-23 | B31: 3.8 | C31: 0 | D31: 0 | E31: 0 | G31: 3.91 | H31: 0.25 | I31: 0.6 | J31: 0.6
A32: 2010-03-25 | B32: 1.6 | C32: 0 | D32: 0 | E32: 0 | G32: 3.925 | H32: 0.25 | I32: 0.6 | J32: 0.55
A33: 2010-03-27 | B33: 2.1 | C33: 0 | D33: 0 | E33: 0 | G33: 3.97 | H33: 0.25 | I33: 0.6 | J33: 0.55
A34: 2010-03-28 | B34: 4.1 | C34: 1 | D34: 2 | E34: 1 | G34: 4.01 | H34: 0.3 | I34: 0.7 | J34: 0.6
A35: 2010-03-30 | B35: 0.7 | C35: 0 | D35: 0 | E35: 0 | G35: 3.905 | H35: 0.3 | I35: 0.7 | J35: 0.6
A36: 2010-04-01 | B36: 4.1 | C36: 0 | D36: 1 | E36: 1 | G36: 3.915 | H36: 0.3 | I36: 0.75 | J36: 0.6
A37: 2010-04-03 | B37: 1.2 | C37: 0 | D37: 0 | E37: 0 | G37: 3.71 | H37: 0.3 | I37: 0.75 | J37: 0.6
A38: 2010-04-06 | B38: 7.1 | C38: 0 | D38: 0 | E38: 0 | G38: 3.915 | H38: 0.25 | I38: 0.6 | J38: 0.5
A39: 2010-04-07 | B39: 3.6 | C39: 1 | D39: 2 | E39: 2 | G39: 3.77 | H39: 0.3 | I39: 0.7 | J39: 0.6
A40: 2010-04-10 | B40: 1 | C40: 0 | D40: 0 | E40: 0 | G40: 3.61 | H40: 0.3 | I40: 0.7 | J40: 0.6
A41: 2010-10-07 | B41: 6.3 | C41: 0 | D41: 0 | E41: 0 | G41: 3.775 | H41: 0.3 | I41: 0.65 | J41: 0.55
A42: 2010-10-09 | B42: 6.9 | C42: 0 | D42: 2 | E42: 2 | G42: 3.74 | H42: 0.3 | I42: 0.75 | J42: 0.65
A43: 2010-10-13 | B43: 2.4 | C43: 0 | D43: 0 | E43: 0 | G43: 3.605 | H43: 0.3 | I43: 0.75 | J43: 0.65
A44: 2010-10-15 | B44: 5.9 | C44: 1 | D44: 1 | E44: 1 | G44: 3.785 | H44: 0.35 | I44: 0.8 | J44: 0.7
A45: 2010-10-18 | B45: 2.8 | C45: 0 | D45: 0 | E45: 0 | G45: 3.84 | H45: 0.35 | I45: 0.8 | J45: 0.7
A46: 2010-10-21 | B46: 3.4 | C46: 0 | D46: 0 | E46: 0 | G46: 3.68 | H46: 0.35 | I46: 0.7 | J46: 0.6
A47: 2010-10-23 | B47: 2.6 | C47: 0 | D47: 0 | E47: 0 | G47: 3.47 | H47: 0.25 | I47: 0.6 | J47: 0.5
A48: 2010-10-26 | B48: 2.5 | C48: 0 | D48: 1 | E48: 2 | G48: 3.335 | H48: 0.25 | I48: 0.65 | J48: 0.6
A49: 2010-10-28 | B49: 4.3 | C49: 0 | D49: 0 | E49: 0 | G49: 3.37 | H49: 0.2 | I49: 0.5 | J49: 0.5
A50: 2010-10-30 | B50: 2.9 | C50: 0 | D50: 0 | E50: 0 | G50: 3.465 | H50: 0.15 | I50: 0.45 | J50: 0.45
A51: 2010-11-02 | B51: 3.2 | C51: 0 | D51: 0 | E51: 1 | G51: 3.435 | H51: 0.15 | I51: 0.45 | J51: 0.5
A52: 2010-11-03 | B52: 3.8 | C52: 1 | D52: 1 | E52: 2 | G52: 3.545 | H52: 0.2 | I52: 0.5 | J52: 0.6
A53: 2010-11-06 | B53: 2 | C53: 0 | D53: 0 | E53: 0 | G53: 3.54 | H53: 0.2 | I53: 0.5 | J53: 0.6
A54: 2010-11-09 | B54: 5.3 | C54: 0 | D54: 0 | E54: 0 | G54: 3.6 | H54: 0.15 | I54: 0.4 | J54: 0.55
A55: 2010-11-10 | B55: 5.8 | C55: 3 | D55: 3 | E55: 3 | G55: 3.855 | H55: 0.3 | I55: 0.55 | J55: 0.7
A56: 2010-11-13 | B56: 2 | C56: 2 | D56: 2 | E56: 2 | G56: 3.75 | H56: 0.4 | I56: 0.6 | J56: 0.75
A57: 2010-11-16 | B57: 4.4 | C57: 1 | D57: 1 | E57: 1 | G57: 3.91 | H57: 0.45 | I57: 0.65 | J57: 0.8
A58: 2010-11-18 | B58: 3.4 | C58: 1 | D58: 1 | E58: 1 | G58: 3.725 | H58: 0.5 | I58: 0.7 | J58: 0.85
A59: 2010-11-20 | B59: 2.8 | C59: 0 | D59: 0 | E59: 0 | G59: 3.685 | H59: 0.45 | I59: 0.6 | J59: 0.75
A60: 2010-11-22 | B60: 0.7 | C60: 0 | D60: 0 | E60: 0 | G60: 3.67 | H60: 0.45 | I60: 0.6 | J60: 0.75
A61: 2010-11-26 | B61: 4.9 | C61: 0 | D61: 0 | E61: 0 | G61: 3.6 | H61: 0.45 | I61: 0.6 | J61: 0.75
A62: 2010-11-27 | B62: 1.1 | C62: 0 | D62: 0 | E62: 0 | G62: 3.31 | H62: 0.45 | I62: 0.5 | J62: 0.65
A63: 2010-11-30 | B63: 0 | C63: 0 | D63: 0 | E63: 0 | G63: 3.19 | H63: 0.45 | I63: 0.5 | J63: 0.65
A64: 2010-12-02 | B64: 2.2 | C64: 0 | D64: 0 | E64: 0 | G64: 3.005 | H64: 0.4 | I64: 0.45 | J64: 0.6
A65: 2010-12-04 | B65: 0.8 | C65: 0 | D65: 0 | E65: 0 | G65: 2.905 | H65: 0.4 | I65: 0.45 | J65: 0.6
A66: 2010-12-06 | B66: 0 | C66: 0 | D66: 0 | E66: 0 | G66: 2.735 | H66: 0.4 | I66: 0.45 | J66: 0.6
A67: 2010-12-08 | B67: 3.5 | C67: 1 | D67: 1 | E67: 1 | G67: 2.78 | H67: 0.45 | I67: 0.5 | J67: 0.65
A68: 2010-12-09 | B68: 4.4 | C68: 0 | D68: 0 | E68: 0 | G68: 2.875 | H68: 0.45 | I68: 0.45 | J68: 0.55
A69: 2010-12-11 | B69: 3.4 | C69: 0 | D69: 0 | E69: 0 | G69: 2.83 | H69: 0.45 | I69: 0.45 | J69: 0.55
A70: 2010-12-14 | B70: 4.6 | C70: 1 | D70: 2 | E70: 1 | G70: 2.915 | H70: 0.5 | I70: 0.55 | J70: 0.6
A71: 2010-12-16 | B71: 0.8 | C71: 0 | D71: 0 | E71: 0 | G71: 2.795 | H71: 0.5 | I71: 0.55 | J71: 0.55
A72: 2010-12-18 | B72: 2.9 | C72: 0 | D72: 0 | E72: 0 | G72: 2.75 | H72: 0.45 | I72: 0.5 | J72: 0.45
A73: 2010-12-20 | B73: 2.7 | C73: 0 | D73: 0 | E73: 0 | G73: 2.785 | H73: 0.45 | I73: 0.5 | J73: 0.45
A74: 2010-12-26 | B74: 2.3 | C74: 0 | D74: 0 | E74: 0 | G74: 2.635 | H74: 0.45 | I74: 0.5 | J74: 0.45
A75: 2010-12-28 | B75: 6.2 | C75: 0 | D75: 0 | E75: 2 | G75: 2.655 | H75: 0.3 | I75: 0.35 | J75: 0.4
A76: 2010-12-30 | B76: 0.4 | C76: 1 | D76: 1 | E76: 1 | G76: 2.575 | H76: 0.25 | I76: 0.3 | J76: 0.35
A77: 2011-01-01 | B77: 3.5 | C77: 0 | D77: 0 | E77: 0 | G77: 2.53 | H77: 0.2 | I77: 0.25 | J77: 0.3
A78: 2011-01-03 | B78: 1.1 | C78: 0 | D78: 0 | E78: 0 | G78: 2.415 | H78: 0.15 | I78: 0.2 | J78: 0.25
A79: 2011-01-06 | B79: 1.6 | C79: 0 | D79: 0 | E79: 0 | G79: 2.355 | H79: 0.15 | I79: 0.2 | J79: 0.25
A80: 2011-01-07 | B80: 2.6 | C80: 0 | D80: 0 | E80: 1 | G80: 2.45 | H80: 0.15 | I80: 0.2 | J80: 0.3
A81: 2011-01-10 | B81: 1 | C81: 0 | D81: 1 | E81: 1 | G81: 2.255 | H81: 0.15 | I81: 0.25 | J81: 0.35
A82: 2011-01-11 | B82: 1.4 | C82: 1 | D82: 1 | E82: 1 | G82: 2.27 | H82: 0.2 | I82: 0.3 | J82: 0.4
A83: 2011-01-13 | B83: 3 | C83: 0 | D83: 0 | E83: 0 | G83: 2.42 | H83: 0.2 | I83: 0.3 | J83: 0.4
A84: 2011-01-15 | B84: 1.9 | C84: 0 | D84: 0 | E84: 0 | G84: 2.405 | H84: 0.2 | I84: 0.3 | J84: 0.4
A85: 2011-01-19 | B85: 3.3 | C85: 1 | D85: 1 | E85: 1 | G85: 2.53 | H85: 0.25 | I85: 0.35 | J85: 0.45
A86: 2011-01-20 | B86: 1.8 | C86: 0 | D86: 0 | E86: 0 | G86: 2.62 | H86: 0.25 | I86: 0.35 | J86: 0.45
A87: 2011-01-22 | B87: 1.8 | C87: 0 | D87: 0 | E87: 0 | G87: 2.535 | H87: 0.2 | I87: 0.3 | J87: 0.4
A88: 2011-01-24 | B88: 4.5 | C88: 1 | D88: 1 | E88: 1 | G88: =AVERAGE(B69:B88) -> 2.54 | H88: =AVERAGE(C69:C88) -> 0.25 | I88: =AVERAGE(D69:D88) -> 0.35 | J88: 0.45
A89: 2011-01-25 | B89: 2 | C89: 0 | D89: 1 | E89: 0 | G89: 2.47 | H89: 0.25 | I89: 0.4 | J89: 0.45
A90: 2011-02-01 | B90: 2.2 | C90: 0 | D90: 1 | E90: 1 | G90: 2.35 | H90: 0.2 | I90: 0.35 | J90: 0.45
A91: 2011-02-03 | B91: 2.4 | C91: 0 | D91: 0 | E91: 0 | G91: 2.43 | H91: 0.2 | I91: 0.35 | J91: 0.45
A92: 2011-02-05 | B92: 2 | C92: 0 | D92: 0 | E92: 0 | G92: 2.385 | H92: 0.2 | I92: 0.35 | J92: 0.45
A93: 2011-02-07 | B93: 0.5 | C93: 0 | D93: 0 | E93: 0 | G93: 2.275 | H93: 0.2 | I93: 0.35 | J93: 0.45
A94: 2011-02-08 | B94: 1.5 | C94: 0 | D94: 0 | E94: 0 | G94: 2.235 | H94: 0.2 | I94: 0.35 | J94: 0.45
A95: 2011-02-10 | B95: 4.8 | C95: 0 | D95: 0 | E95: 0 | G95: 2.165 | H95: 0.2 | I95: 0.35 | J95: 0.35
A96: 2011-02-12 | B96: 2.9 | C96: 0 | D96: 0 | E96: 1 | G96: 2.29 | H96: 0.15 | I96: 0.3 | J96: 0.35
A97: 2011-02-15 | B97: 1.6 | C97: 0 | D97: 1 | E97: 0 | G97: 2.195 | H97: 0.15 | I97: 0.35 | J97: 0.35
A98: 2011-02-16 | B98: 2.5 | C98: 1 | D98: 1 | E98: 1 | G98: 2.265 | H98: 0.2 | I98: 0.4 | J98: 0.4
A99: 2011-02-19 | B99: 5.5 | C99: 1 | D99: 1 | E99: 1 | G99: 2.46 | H99: 0.25 | I99: 0.45 | J99: 0.45
A100: 2011-02-22 | B100: 3.6 | C100: 0 | D100: 0 | E100: 0 | G100: 2.51 | H100: 0.25 | I100: 0.45 | J100: 0.4
A101: 2011-02-24 | B101: 7 | C101: 0 | D101: 1 | E101: 1 | G101: 2.81 | H101: 0.25 | I101: 0.45 | J101: 0.4
A102: 2011-02-26 | B102: 5.9 | C102: 0 | D102: 0 | E102: 0 | G102: 3.035 | H102: 0.2 | I102: 0.4 | J102: 0.35
A103: 2011-02-27 | B103: 5.1 | C103: 0 | D103: 0 | E103: 0 | G103: 3.14 | H103: 0.2 | I103: 0.4 | J103: 0.35
A104: 2011-03-02 | B104: 4.4 | C104: 0 | D104: 0 | E104: 1 | G104: 3.265 | H104: 0.2 | I104: 0.4 | J104: 0.4
A105: 2011-03-03 | B105: 6.7 | C105: 0 | D105: 1 | E105: 1 | G105: 3.435 | H105: 0.15 | I105: 0.4 | J105: 0.4
A106: 2011-03-05 | B106: 3.8 | C106: 0 | D106: 0 | E106: 0 | G106: 3.535 | H106: 0.15 | I106: 0.4 | J106: 0.4
A107: 2011-03-08 | B107: 3 | C107: 0 | D107: 0 | E107: 0 | G107: 3.595 | H107: 0.15 | I107: 0.4 | J107: 0.4
A108: 2011-03-10 | B108: 1.8 | C108: 0 | D108: 0 | E108: 0 | G108: 3.46 | H108: 0.1 | I108: 0.35 | J108: 0.35
A109: 2011-03-12 | B109: 1.4 | C109: 0 | D109: 0 | E109: 0 | G109: 3.43 | H109: 0.1 | I109: 0.3 | J109: 0.35
A110: 2011-03-14 | B110: 4.1 | C110: 0 | D110: 0 | E110: 0 | G110: 3.525 | H110: 0.1 | I110: 0.25 | J110: 0.3
A111: 2011-03-16 | B111: 0 | C111: 0 | D111: 0 | E111: 0 | G111: 3.405 | H111: 0.1 | I111: 0.25 | J111: 0.3
A112: 2011-03-17 | B112: 1.4 | C112: 0 | D112: 0 | E112: 1 | G112: 3.375 | H112: 0.1 | I112: 0.25 | J112: 0.35
A113: 2011-03-19 | B113: 0 | C113: 0 | D113: 0 | E113: 0 | G113: 3.35 | H113: 0.1 | I113: 0.25 | J113: 0.35
A114: 2011-03-22 | B114: 3.3 | C114: 0 | D114: 0 | E114: 0 | G114: 3.44 | H114: 0.1 | I114: 0.25 | J114: 0.35
A115: 2011-03-24 | B115: 1.5 | C115: 0 | D115: 0 | E115: 0 | G115: 3.275 | H115: 0.1 | I115: 0.25 | J115: 0.35
A116: 2011-03-26 | B116: 1.9 | C116: 0 | D116: 0 | E116: 0 | G116: 3.225 | H116: 0.1 | I116: 0.25 | J116: 0.3
A117: 2011-03-29 | B117: 3.8 | C117: 0 | D117: 0 | E117: 0 | G117: 3.335 | H117: 0.1 | I117: 0.2 | J117: 0.3
A118: 2011-03-31 | B118: 3.2 | C118: 0 | D118: 0 | E118: 0 | G118: 3.37 | H118: 0.05 | I118: 0.15 | J118: 0.25
A119: 2011-04-02 | B119: 3.6 | C119: 1 | D119: 2 | E119: 1 | G119: 3.275 | H119: 0.05 | I119: 0.2 | J119: 0.25
A120: 2011-04-05 | B120: 1.2 | C120: 0 | D120: 0 | E120: 0 | G120: 3.155 | H120: 0.05 | I120: 0.2 | J120: 0.25
A121: 2011-04-06 | B121: 0 | C121: 0 | D121: 0 | E121: 0 | G121: 2.805 | H121: 0.05 | I121: 0.15 | J121: 0.2
A122: 2011-04-09 | B122: 2.7 | C122: 0 | D122: 0 | E122: 0 | G122: 2.645 | H122: 0.05 | I122: 0.15 | J122: 0.2
A123: 2011-10-06 | B123: 4.2 | C123: 0 | D123: 0 | E123: 0 | G123: 2.6 | H123: 0.05 | I123: 0.15 | J123: 0.2
A124: 2011-10-08 | B124: 6.6 | C124: 1 | D124: 2 | E124: 2 | G124: 2.71 | H124: 0.1 | I124: 0.25 | J124: 0.25
A125: 2011-10-15 | B125: 3.7 | C125: 0 | D125: 0 | E125: 0 | G125: 2.56 | H125: 0.1 | I125: 0.2 | J125: 0.2
A126: 2011-10-17 | B126: 3.8 | C126: 0 | D126: 1 | E126: 0 | G126: 2.56 | H126: 0.1 | I126: 0.25 | J126: 0.2
A127: 2011-10-19 | B127: 2.5 | C127: 0 | D127: 0 | E127: 0 | G127: 2.535 | H127: 0.1 | I127: 0.25 | J127: 0.2
A128: 2011-10-20 | B128: 0.8 | C128: 0 | D128: 0 | E128: 0 | G128: 2.485 | H128: 0.1 | I128: 0.25 | J128: 0.2
A129: 2011-10-27 | B129: 0 | C129: 0 | D129: 0 | E129: 0 | G129: 2.415 | H129: 0.1 | I129: 0.25 | J129: 0.2
A130: 2011-10-29 | B130: 0 | C130: 0 | D130: 0 | E130: 0 | G130: 2.21 | H130: 0.1 | I130: 0.25 | J130: 0.2
A131: 2011-10-30 | B131: 0 | C131: 0 | D131: 0 | E131: 0 | G131: 2.21 | H131: 0.1 | I131: 0.25 | J131: 0.2
A132: 2011-11-02 | B132: 0.2 | C132: 0 | D132: 0 | E132: 0 | G132: 2.15 | H132: 0.1 | I132: 0.25 | J132: 0.15
A133: 2011-11-03 | B133: 0.8 | C133: 0 | D133: 0 | E133: 0 | G133: 2.19 | H133: 0.1 | I133: 0.25 | J133: 0.15
A134: 2011-11-05 | B134: 0.8 | C134: 0 | D134: 0 | E134: 0 | G134: 2.065 | H134: 0.1 | I134: 0.25 | J134: 0.15
A135: 2011-11-08 | B135: 1.8 | C135: 1 | D135: 2 | E135: 2 | G135: 2.08 | H135: 0.15 | I135: 0.35 | J135: 0.25
A136: 2011-11-10 | B136: 1.8 | C136: 0 | D136: 0 | E136: 0 | G136: 2.075 | H136: 0.15 | I136: 0.35 | J136: 0.25
A137: 2011-11-12 | B137: 6.1 | C137: 0 | D137: 1 | E137: 0 | G137: 2.19 | H137: 0.15 | I137: 0.4 | J137: 0.25
A138: 2011-11-15 | B138: 1.7 | C138: 0 | D138: 0 | E138: 0 | G138: 2.115 | H138: 0.15 | I138: 0.4 | J138: 0.25
A139: 2011-11-17 | B139: 2 | C139: 0 | D139: 1 | E139: 1 | G139: 2.035 | H139: 0.1 | I139: 0.35 | J139: 0.25
A140: 2011-11-19 | B140: 3.9 | C140: 2 | D140: 2 | E140: 2 | G140: 2.17 | H140: 0.2 | I140: 0.45 | J140: 0.35
A141: 2011-11-20 | B141: 0 | C141: 0 | D141: 0 | E141: 0 | G141: 2.17 | H141: 0.2 | I141: 0.45 | J141: 0.35
A142: 2011-11-22 | B142: 3.2 | C142: 1 | D142: 1 | E142: 1 | G142: 2.195 | H142: 0.25 | I142: 0.5 | J142: 0.4
A143: 2011-11-25 | B143: 5.1 | C143: 2 | D143: 2 | E143: 2 | G143: 2.24 | H143: 0.35 | I143: 0.6 | J143: 0.5
A144: 2011-11-27 | B144: 5.3 | C144: 1 | D144: 3 | E144: 4 | G144: 2.175 | H144: 0.35 | I144: 0.65 | J144: 0.6
A145: 2011-11-30 | B145: 2.2 | C145: 1 | D145: 1 | E145: 1 | G145: 2.1 | H145: 0.4 | I145: 0.7 | J145: 0.65
A146: 2011-12-03 | B146: 3.3 | C146: 0 | D146: 0 | E146: 0 | G146: 2.075 | H146: 0.4 | I146: 0.65 | J146: 0.65
A147: 2011-12-05 | B147: 3.3 | C147: 0 | D147: 0 | E147: 0 | G147: 2.115 | H147: 0.4 | I147: 0.65 | J147: 0.65
A148: 2011-12-06 | B148: 2.1 | C148: 1 | D148: 1 | E148: 1 | G148: 2.18 | H148: 0.45 | I148: 0.7 | J148: 0.7
A149: 2011-12-09 | B149: 2.3 | C149: 0 | D149: 0 | E149: 0 | G149: 2.295 | H149: 0.45 | I149: 0.7 | J149: 0.7
A150: 2011-12-13 | B150: 2.2 | C150: 0 | D150: 0 | E150: 0 | G150: 2.405 | H150: 0.45 | I150: 0.7 | J150: 0.7
A151: 2011-12-16 | B151: 2.9 | C151: 0 | D151: 0 | E151: 0 | G151: 2.55 | H151: 0.45 | I151: 0.7 | J151: 0.7
A152: 2011-12-17 | B152: 0.7 | C152: 0 | D152: 0 | E152: 0 | G152: =AVERAGE(B133:B152) -> 2.575 | H152: =AVERAGE(C133:C152) -> 0.45 | I152: =AVERAGE(D133:D152) -> 0.7 | J152: 0.7
A153: 2011-12-19 | B153: 3.7 | C153: 0 | D153: 0 | E153: 0 | G153: 2.72 | H153: 0.45 | I153: 0.7 | J153: 0.7
A154: 2011-12-22 | B154: 5.5 | C154: 0 | D154: 0 | E154: 0 | G154: 2.955 | H154: 0.45 | I154: 0.7 | J154: 0.7
A155: 2011-12-23 | B155: 0.7 | C155: 0 | D155: 0 | E155: 0 | G155: 2.9 | H155: 0.4 | I155: 0.6 | J155: 0.6
A156: 2011-12-27 | B156: 4 | C156: 0 | D156: 0 | E156: 0 | G156: 3.01 | H156: 0.4 | I156: 0.6 | J156: 0.6
A157: 2011-12-29 | B157: 6.9 | C157: 0 | D157: 0 | E157: 0 | G157: 3.05 | H157: 0.4 | I157: 0.55 | J157: 0.6
A158: 2012-01-17 | B158: 2.9 | C158: 1 | D158: 1 | E158: 1 | G158: 3.11 | H158: 0.45 | I158: 0.6 | J158: 0.65
A159: 2012-01-19 | B159: 6.6 | C159: 0 | D159: 0 | E159: 0 | G159: 3.34 | H159: 0.45 | I159: 0.55 | J159: 0.6
A160: 2012-01-21 | B160: 1.1 | C160: 0 | D160: 0 | E160: 0 | G160: 3.2 | H160: 0.35 | I160: 0.45 | J160: 0.5
A161: 2012-01-23 | B161: 3 | C161: 1 | D161: 1 | E161: 1 | G161: 3.35 | H161: 0.4 | I161: 0.5 | J161: 0.55
A162: 2012-01-24 | B162: 1.1 | C162: 0 | D162: 0 | E162: 0 | G162: 3.245 | H162: 0.35 | I162: 0.45 | J162: 0.5
A163: 2012-01-31 | B163: 2.2 | C163: 0 | D163: 1 | E163: 1 | G163: 3.1 | H163: 0.25 | I163: 0.4 | J163: 0.45
A164: 2012-02-01 | B164: 4.8 | C164: 0 | D164: 0 | E164: 0 | G164: 3.075 | H164: 0.2 | I164: 0.25 | J164: 0.25
A165: 2012-02-04 | B165: 3.3 | C165: 1 | D165: 1 | E165: 1 | G165: 3.13 | H165: 0.2 | I165: 0.25 | J165: 0.25
A166: 2012-02-07 | B166: 2.9 | C166: 0 | D166: 0 | E166: 0 | G166: 3.11 | H166: 0.2 | I166: 0.25 | J166: 0.25
A167: 2012-02-09 | B167: 2.7 | C167: 1 | D167: 1 | E167: 1 | G167: 3.08 | H167: 0.25 | I167: 0.3 | J167: 0.3
A168: 2012-02-11 | B168: 6.4 | C168: 0 | D168: 3 | E168: 2 | G168: 3.295 | H168: 0.2 | I168: 0.4 | J168: 0.35
A169: 2012-02-14 | B169: 2.9 | C169: 1 | D169: 1 | E169: 1 | G169: 3.325 | H169: 0.25 | I169: 0.45 | J169: 0.4
A170: 2012-02-15 | B170: 2.4 | C170: 0 | D170: 0 | E170: 0 | G170: 3.335 | H170: 0.25 | I170: 0.45 | J170: 0.4
A171: 2012-02-18 | B171: 2 | C171: 0 | D171: 0 | E171: 0 | G171: 3.29 | H171: 0.25 | I171: 0.45 | J171: 0.4
A172: 2012-02-21 | B172: 2.5 | C172: 2 | D172: 2 | E172: 2 | G172: 3.38 | H172: 0.35 | I172: 0.55 | J172: 0.5
A173: 2012-02-25 | B173: 4.9 | C173: 1 | D173: 1 | E173: 1 | G173: 3.44 | H173: 0.4 | I173: 0.6 | J173: 0.55
A174: 2012-02-28 | B174: 3.6 | C174: 0 | D174: 0 | E174: 0 | G174: 3.345 | H174: 0.4 | I174: 0.6 | J174: 0.55
A175: 2012-02-29 | B175: 1.8 | C175: 0 | D175: 0 | E175: 0 | G175: 3.4 | H175: 0.4 | I175: 0.6 | J175: 0.55
A176: 2012-03-03 | B176: 2.1 | C176: 0 | D176: 0 | E176: 0 | G176: 3.305 | H176: 0.4 | I176: 0.6 | J176: 0.55
A177: 2012-03-06 | B177: 3.1 | C177: 0 | D177: 0 | E177: 0 | G177: 3.115 | H177: 0.4 | I177: 0.6 | J177: 0.55
A178: 2012-03-07 | B178: 3.7 | C178: 0 | D178: 0 | E178: 0 | G178: 3.155 | H178: 0.35 | I178: 0.55 | J178: 0.5
A179: 2012-03-10 | B179: 4.3 | C179: 1 | D179: 1 | E179: 1 | G179: 3.04 | H179: 0.4 | I179: 0.6 | J179: 0.55
A180: 2012-03-11 | B180: 0.4 | C180: 0 | D180: 0 | E180: 0 | G180: 3.005 | H180: 0.4 | I180: 0.6 | J180: 0.55
A181: 2012-03-13 | B181: 3.3 | C181: 0 | D181: 1 | E181: 1 | G181: 3.02 | H181: 0.35 | I181: 0.6 | J181: 0.55
A182: 2012-03-15 | B182: 6.7 | C182: 2 | D182: 2 | E182: 2 | G182: 3.3 | H182: 0.45 | I182: 0.7 | J182: 0.65
A183: 2012-03-17 | B183: 2.8 | C183: 0 | D183: 0 | E183: 0 | G183: 3.33 | H183: 0.45 | I183: 0.65 | J183: 0.6
A184: 2012-03-19 | B184: 1.9 | C184: 0 | D184: 0 | E184: 0 | G184: 3.185 | H184: 0.45 | I184: 0.65 | J184: 0.6
A185: 2012-03-20 | B185: 1.5 | C185: 0 | D185: 0 | E185: 0 | G185: 3.095 | H185: 0.4 | I185: 0.6 | J185: 0.55
A186: 2012-03-24 | B186: 4.7 | C186: 0 | D186: 1 | E186: 1 | G186: 3.185 | H186: 0.4 | I186: 0.65 | J186: 0.6
A187: 2012-03-27 | B187: 1.6 | C187: 1 | D187: 1 | E187: 1 | G187: 3.13 | H187: 0.4 | I187: 0.65 | J187: 0.6
A188: 2012-03-29 | B188: 3.7 | C188: 0 | D188: 0 | E188: 0 | G188: 2.995 | H188: 0.4 | I188: 0.5 | J188: 0.5
A189: 2012-03-31 | B189: 2.8 | C189: 0 | D189: 0 | E189: 0 | G189: 2.99 | H189: 0.35 | I189: 0.45 | J189: 0.45
A190: 2012-04-03 | B190: 1.2 | C190: 0 | D190: 0 | E190: 0 | G190: 2.93 | H190: 0.35 | I190: 0.45 | J190: 0.45
A191: 2012-04-05 | B191: 2 | C191: 0 | D191: 0 | E191: 0 | G191: 2.93 | H191: 0.35 | I191: 0.45 | J191: 0.45
A192: 2012-04-07 | B192: 5.1 | C192: 0 | D192: 0 | E192: 0 | G192: 3.06 | H192: 0.25 | I192: 0.35 | J192: 0.35
A193: 2013-01-19 | B193: 3.1 | C193: 1 | D193: 1 | E193: 1 | G193: 2.97 | H193: 0.25 | I193: 0.35 | J193: 0.35
A194: 2013-01-21 | B194: 4.2 | C194: 0 | D194: 0 | E194: 0 | G194: 3 | H194: 0.25 | I194: 0.35 | J194: 0.35
A195: 2013-01-23 | B195: 6 | C195: 1 | D195: 1 | E195: 1 | G195: 3.21 | H195: 0.3 | I195: 0.4 | J195: 0.4
A196: 2013-01-24 | B196: 3.5 | C196: 1 | D196: 1 | E196: 1 | G196: 3.28 | H196: 0.35 | I196: 0.45 | J196: 0.45
A197: 2013-01-26 | B197: 3 | C197: 0 | D197: 0 | E197: 0 | G197: 3.275 | H197: 0.35 | I197: 0.45 | J197: 0.45
A198: 2013-01-29 | B198: 1.7 | C198: 0 | D198: 0 | E198: 0 | G198: 3.175 | H198: 0.35 | I198: 0.45 | J198: 0.45
A199: 2013-01-31 | B199: 8.8 | C199: 0 | D199: 1 | E199: 0 | G199: 3.4 | H199: 0.3 | I199: 0.45 | J199: 0.4
A200: 2013-02-02 | B200: 2.1 | C200: 0 | D200: 0 | E200: 0 | G200: 3.485 | H200: 0.3 | I200: 0.45 | J200: 0.4
A201: 2013-02-04 | B201: 5.1 | C201: 0 | D201: 0 | E201: 0 | G201: 3.575 | H201: 0.3 | I201: 0.4 | J201: 0.35
... 247 more rows

Sheet Sheet2
Q1: 38630 | R1: 42427
A2: Date | B2: 2005-06 | C2: 2006-07 | D2: 2007-08 | E2: 2008-09 | F2: 2009-10 | G2: 2010-11 | H2: 2011-12 | I2: 2012-13 | J2: 2013-14 | K2: 2014-15 | L2: 2015-16 | Q2: 2005-10-05 | R2: 2016-02-27
A3: 2005-10-05 | B3: Y
A4: 2005-10-06 | B4: Y
A5: 2005-10-07 | B5: Y
A6: 2005-10-08 | B6: Y
A7: 2005-10-09 | B7: Y
A8: 2005-10-10 | B8: Y
A9: 2005-10-11 | B9: Y
A10: 2005-10-12 | B10: Y
A11: 2005-10-13 | B11: Y
A12: 2005-10-14 | B12: Y
A13: 2005-10-15 | B13: Y
A14: 2005-10-16 | B14: Y
A15: 2005-10-17 | B15: Y
A16: 2005-10-18 | B16: Y
A17: 2005-10-19 | B17: Y
A18: 2005-10-20 | B18: Y
A19: 2005-10-21 | B19: Y
A20: 2005-10-22 | B20: Y
A21: 2005-10-23 | B21: Y
A22: 2005-10-24 | B22: Y
A23: 2005-10-25 | B23: Y
A24: 2005-10-26 | B24: Y
A25: 2005-10-27 | B25: Y
A26: 2005-10-28 | B26: Y
A27: 2005-10-29 | B27: Y
A28: 2005-10-30 | B28: Y
A29: 2005-10-31 | B29: Y
A30: 2005-11-01 | B30: Y
A31: 2005-11-02 | B31: Y
A32: 2005-11-03 | B32: Y
A33: 2005-11-04 | B33: Y
A34: 2005-11-05 | B34: Y
A35: 2005-11-06 | B35: Y
A36: 2005-11-07 | B36: Y
A37: 2005-11-08 | B37: Y
A38: 2005-11-09 | B38: Y
A39: 2005-11-10 | B39: Y
A40: 2005-11-11 | B40: Y
A41: 2005-11-12 | B41: Y
A42: 2005-11-13 | B42: Y
A43: 2005-11-14 | B43: Y
A44: 2005-11-15 | B44: Y
A45: 2005-11-16 | B45: Y
A46: 2005-11-17 | B46: Y
A47: 2005-11-18 | B47: Y
A48: 2005-11-19 | B48: Y
A49: 2005-11-20 | B49: Y
A50: 2005-11-21 | B50: Y
A51: 2005-11-22 | B51: Y
A52: 2005-11-23 | B52: Y
A53: 2005-11-24 | B53: Y
A54: 2005-11-25 | B54: Y
A55: 2005-11-26 | B55: Y
A56: 2005-11-27 | B56: Y
A57: 2005-11-28 | B57: Y
A58: 2005-11-29 | B58: Y
A59: 2005-11-30 | B59: Y
A60: 2005-12-01 | B60: Y
A61: 2005-12-02 | B61: Y
A62: 2005-12-03 | B62: Y
A63: 2005-12-04 | B63: Y
A64: 2005-12-05 | B64: Y
A65: 2005-12-06 | B65: Y
A66: 2005-12-07 | B66: Y
A67: 2005-12-08 | B67: Y
A68: 2005-12-09 | B68: Y
A69: 2005-12-10 | B69: Y
A70: 2005-12-11 | B70: Y
A71: 2005-12-12 | B71: Y
A72: 2005-12-13 | B72: Y
A73: 2005-12-14 | B73: Y
A74: 2005-12-15 | B74: Y
A75: 2005-12-16 | B75: Y
A76: 2005-12-17 | B76: Y
A77: 2005-12-18 | B77: Y
A78: 2005-12-19 | B78: Y
A79: 2005-12-20 | B79: Y
A80: 2005-12-21 | B80: Y
A81: 2005-12-22 | B81: Y
A82: 2005-12-23 | B82: Y
A83: 2005-12-26 | B83: Y
A84: 2005-12-27 | B84: Y
A85: 2005-12-28 | B85: Y
A86: 2005-12-29 | B86: Y
A87: 2005-12-30 | B87: Y
A88: 2005-12-31 | B88: Y
A89: 2006-01-01 | B89: Y
A90: 2006-01-02 | B90: Y
A91: 2006-01-03 | B91: Y
A92: 2006-01-04 | B92: Y
A93: 2006-01-05 | B93: Y
A94: 2006-01-06 | B94: Y
A95: 2006-01-07 | B95: Y
A96: 2006-01-08 | B96: Y
A97: 2006-01-09 | B97: Y
A98: 2006-01-10 | B98: Y
A99: 2006-01-11 | B99: Y
A100: 2006-01-12 | B100: Y
A101: 2006-01-13 | B101: Y
A102: 2006-01-14 | B102: Y
A103: 2006-01-15 | B103: Y
A104: 2006-01-16 | B104: Y
A105: 2006-01-17 | B105: Y
A106: 2006-01-18 | B106: Y
A107: 2006-01-19 | B107: Y
A108: 2006-01-20 | B108: Y
A109: 2006-01-21 | B109: Y
A110: 2006-01-22 | B110: Y
A111: 2006-01-23 | B111: Y
A112: 2006-01-24 | B112: Y
A113: 2006-01-25 | B113: Y
A114: 2006-01-26 | B114: Y
A115: 2006-01-27 | B115: Y
A116: 2006-01-28 | B116: Y
A117: 2006-01-29 | B117: Y
A118: 2006-01-30 | B118: Y
A119: 2006-01-31 | B119: Y
A120: 2006-02-01 | B120: Y
A121: 2006-02-02 | B121: Y
A122: 2006-02-03 | B122: Y
A123: 2006-02-04 | B123: Y
A124: 2006-02-05 | B124: Y
A125: 2006-02-06 | B125: Y
A126: 2006-02-07 | B126: Y
A127: 2006-02-08 | B127: Y
A128: 2006-02-09 | B128: Y
A129: 2006-02-10 | B129: Y
A130: 2006-02-11 | B130: Y
A131: 2006-02-12 | B131: Y
A132: 2006-02-28 | B132: Y
A133: 2006-03-01 | B133: Y
A134: 2006-03-02 | B134: Y
A135: 2006-03-03 | B135: Y
A136: 2006-03-04 | B136: Y
A137: 2006-03-05 | B137: Y
A138: 2006-03-06 | B138: Y
A139: 2006-03-07 | B139: Y
A140: 2006-03-08 | B140: Y
A141: 2006-03-09 | B141: Y
A142: 2006-03-10 | B142: Y
A143: 2006-03-11 | B143: Y
A144: 2006-03-12 | B144: Y
A145: 2006-03-13 | B145: Y
A146: 2006-03-14 | B146: Y
A147: 2006-03-15 | B147: Y
A148: 2006-03-16 | B148: Y
A149: 2006-03-17 | B149: Y
A150: 2006-03-18 | B150: Y
A151: 2006-03-19 | B151: Y
A152: 2006-03-20 | B152: Y
A153: 2006-03-21 | B153: Y
A154: 2006-03-22 | B154: Y
A155: 2006-03-23 | B155: Y
A156: 2006-03-24 | B156: Y
A157: 2006-03-25 | B157: Y
A158: 2006-03-26 | B158: Y
A159: 2006-03-27 | B159: Y
A160: 2006-03-28 | B160: Y
A161: 2006-03-29 | B161: Y
A162: 2006-03-30 | B162: Y
A163: 2006-03-31 | B163: Y
A164: 2006-04-01 | B164: Y
A165: 2006-04-02 | B165: Y
A166: 2006-04-03 | B166: Y
A167: 2006-04-04 | B167: Y
A168: 2006-04-05 | B168: Y
A169: 2006-04-06 | B169: Y
A170: 2006-04-07 | B170: Y
A171: 2006-04-08 | B171: Y
A172: 2006-04-09 | B172: Y
A173: 2006-04-10 | B173: Y
A174: 2006-04-11 | B174: Y
A175: 2006-04-12 | B175: Y
A176: 2006-04-13 | B176: Y
A177: 2006-04-14 | B177: Y
A178: 2006-04-15 | B178: Y
A179: 2006-04-16 | B179: Y
A180: 2006-04-17 | B180: Y
A181: 2006-04-18 | B181: Y
A182: 2006-04-21
A183: 2006-04-22
A184: 2006-04-23
A185: 2006-04-24
A186: 2006-04-25
A187: 2006-04-26
A188: 2006-04-27
A189: 2006-04-28
A190: 2006-04-29
A191: 2006-04-30
A192: 2006-05-01
A193: 2006-05-02
A194: 2006-05-03
A195: 2006-05-05
A196: 2006-05-06
A197: 2006-05-07
A198: 2006-05-08
A199: 2006-05-09
A200: 2006-05-10
... 2092 more rows

Sheet HSC
A1: Name | B1: Tyler.Bozak
A3: Row Labels | B3: TOI/Gm | C3: iHSC | D3: HSCF | E3: Average of HSC+/- | G3: TOI/Gm | H3: iHSC | I3: HSCF | J3: iFF
A4: 2009-10-13 | B4: 2 | C4: 1 | D4: 0.8 | E4: 0.8
A5: 2010-01-12 | B5: 2.9 | C5: 0 | D5: 0 | E5: 0
A6: 2010-01-14 | B6: 1.8 | C6: 0 | D6: 0 | E6: 0
A7: 2010-01-15 | B7: 6.5 | C7: 0 | D7: 3.1 | E7: 3.1
A8: 2010-01-18 | B8: 2.5 | C8: 0 | D8: 0 | E8: 0
A9: 2010-01-19 | B9: 2.9 | C9: 0 | D9: 0 | E9: 0
A10: 2010-01-21 | B10: 5.6 | C10: 0 | D10: 1.1 | E10: 1.1
A11: 2010-01-23 | B11: 4.2 | C11: 0 | D11: 2.8 | E11: 2.8
A12: 2010-01-26 | B12: 1.3 | C12: 0 | D12: 0 | E12: 0
A13: 2010-01-29 | B13: 1.2 | C13: 0 | D13: 0 | E13: 0
A14: 2010-01-30 | B14: 3.3 | C14: 0 | D14: 0.9 | E14: 0.9
A15: 2010-02-02 | B15: 2.8 | C15: 0 | D15: 0 | E15: 0
A16: 2010-02-05 | B16: 3.9 | C16: 0 | D16: 0 | E16: 0
A17: 2010-02-06 | B17: 5.3 | C17: 0 | D17: 3.5 | E17: 2.5
A18: 2010-02-08 | B18: 3 | C18: 1 | D18: 4.3 | E18: 4.3
A19: 2010-02-12 | B19: 6.5 | C19: 0 | D19: 0 | E19: 0
A20: 2010-03-02 | B20: 4.2 | C20: 0 | D20: 0.9 | E20: -0.1
A21: 2010-03-04 | B21: 3 | C21: 0 | D21: 0 | E21: -1
A22: 2010-03-06 | B22: 7.6 | C22: 0 | D22: 1.1 | E22: 1.1
A23: 2010-03-07 | B23: 5.1 | C23: 0 | D23: 1.1 | E23: 1.1 | G23: =AVERAGE(B4:B23) -> 3.78 | H23: =AVERAGE(C4:C23) -> 0.1 | I23: 0.98 | J23: 0.83
A24: 2010-03-09 | B24: 2.3 | C24: 0 | D24: 2 | E24: 2 | G24: =AVERAGE(B5:B24) -> 3.795 | H24: 0.05 | I24: 1.04 | J24: 0.89
A25: 2010-03-11 | B25: 1.7 | C25: 0 | D25: 1.5 | E25: 1.5 | G25: 3.735 | H25: 0.05 | I25: 1.115 | J25: 0.965
A26: 2010-03-13 | B26: 6.6 | C26: 0 | D26: 0 | E26: 0 | G26: 3.975 | H26: 0.05 | I26: 1.115 | J26: 0.965
A27: 2010-03-14 | B27: 6.8 | C27: 2 | D27: 2.7 | E27: 0.7 | G27: 3.99 | H27: 0.15 | I27: 1.095 | J27: 0.845
A28: 2010-03-16 | B28: 5.2 | C28: 0 | D28: 0 | E28: -1 | G28: 4.125 | H28: 0.15 | I28: 1.095 | J28: 0.795
A29: 2010-03-18 | B29: 3.6 | C29: 1 | D29: 2.7 | E29: 2.7 | G29: 4.16 | H29: 0.2 | I29: 1.23 | J29: 0.93
A30: 2010-03-20 | B30: 1 | C30: 1 | D30: 1 | E30: 1 | G30: 3.93 | H30: 0.25 | I30: 1.225 | J30: 0.925
A31: 2010-03-23 | B31: 3.8 | C31: 0 | D31: 2.9 | E31: 2.9 | G31: 3.91 | H31: 0.25 | I31: 1.23 | J31: 0.93
A32: 2010-03-25 | B32: 1.6 | C32: 0 | D32: 0 | E32: -1 | G32: 3.925 | H32: 0.25 | I32: 1.23 | J32: 0.88
A33: 2010-03-27 | B33: 2.1 | C33: 0 | D33: 0 | E33: 0 | G33: 3.97 | H33: 0.25 | I33: 1.23 | J33: 0.88
A34: 2010-03-28 | B34: 4.1 | C34: 1 | D34: 2.1 | E34: 2.1 | G34: 4.01 | H34: 0.3 | I34: 1.29 | J34: 0.94
A35: 2010-03-30 | B35: 0.7 | C35: 0 | D35: 0 | E35: 0 | G35: 3.905 | H35: 0.3 | I35: 1.29 | J35: 0.94
A36: 2010-04-01 | B36: 4.1 | C36: 0 | D36: 0 | E36: 0 | G36: 3.915 | H36: 0.3 | I36: 1.29 | J36: 0.94
A37: 2010-04-03 | B37: 1.2 | C37: 0 | D37: 2 | E37: 2 | G37: 3.71 | H37: 0.3 | I37: 1.215 | J37: 0.915
A38: 2010-04-06 | B38: 7.1 | C38: 0 | D38: 0.7 | E38: 0.7 | G38: 3.915 | H38: 0.25 | I38: 1.035 | J38: 0.735
A39: 2010-04-07 | B39: 3.6 | C39: 1 | D39: 2.1 | E39: 1.1 | G39: 3.77 | H39: 0.3 | I39: 1.14 | J39: 0.79
A40: 2010-04-10 | B40: 1 | C40: 0 | D40: 0 | E40: -1 | G40: =AVERAGE(B21:B40) -> 3.61 | H40: 0.3 | I40: 1.095 | J40: 0.745
A41: 2010-10-07 | B41: 6.3 | C41: 0 | D41: 0 | E41: 0 | G41: 3.775 | H41: 0.3 | I41: 1.095 | J41: 0.795
A42: 2010-10-09 | B42: 6.9 | C42: 0 | D42: 2 | E42: 2 | G42: 3.74 | H42: 0.3 | I42: 1.14 | J42: 0.84
A43: 2010-10-13 | B43: 2.4 | C43: 0 | D43: 0 | E43: 0 | G43: 3.605 | H43: 0.3 | I43: 1.085 | J43: 0.785
A44: 2010-10-15 | B44: 5.9 | C44: 1 | D44: 1 | E44: 1 | G44: 3.785 | H44: 0.35 | I44: 1.035 | J44: 0.735
A45: 2010-10-18 | B45: 2.8 | C45: 0 | D45: 0 | E45: 0 | G45: 3.84 | H45: 0.35 | I45: 0.96 | J45: 0.66
A46: 2010-10-21 | B46: 3.4 | C46: 0 | D46: 0 | E46: -1 | G46: 3.68 | H46: 0.35 | I46: 0.96 | J46: 0.61
A47: 2010-10-23 | B47: 2.6 | C47: 0 | D47: 0.9 | E47: 0.9 | G47: 3.47 | H47: 0.25 | I47: 0.87 | J47: 0.62
A48: 2010-10-26 | B48: 2.5 | C48: 0 | D48: 0 | E48: 0 | G48: 3.335 | H48: 0.25 | I48: 0.87 | J48: 0.67
A49: 2010-10-28 | B49: 4.3 | C49: 0 | D49: 3.3 | E49: 2.3 | G49: 3.37 | H49: 0.2 | I49: 0.9 | J49: 0.65
A50: 2010-10-30 | B50: 2.9 | C50: 0 | D50: 0 | E50: 0 | G50: 3.465 | H50: 0.15 | I50: 0.85 | J50: 0.6
A51: 2010-11-02 | B51: 3.2 | C51: 0 | D51: 0 | E51: 0 | G51: 3.435 | H51: 0.15 | I51: 0.705 | J51: 0.455
A52: 2010-11-03 | B52: 3.8 | C52: 1 | D52: 1 | E52: 1 | G52: 3.545 | H52: 0.2 | I52: 0.755 | J52: 0.555
A53: 2010-11-06 | B53: 2 | C53: 0 | D53: 0 | E53: 0 | G53: 3.54 | H53: 0.2 | I53: 0.755 | J53: 0.555
A54: 2010-11-09 | B54: 5.3 | C54: 0 | D54: 0.8 | E54: 0.8 | G54: 3.6 | H54: 0.15 | I54: 0.69 | J54: 0.49
A55: 2010-11-10 | B55: 5.8 | C55: 3 | D55: 3.7 | E55: 3.7 | G55: 3.855 | H55: 0.3 | I55: 0.875 | J55: 0.675
A56: 2010-11-13 | B56: 2 | C56: 2 | D56: 1.8 | E56: 0.8 | G56: =AVERAGE(B37:B56) -> 3.75 | H56: 0.4 | I56: 0.965 | J56: 0.715
A57: 2010-11-16 | B57: 4.4 | C57: 1 | D57: 2.5 | E57: 2.5 | G57: 3.91 | H57: 0.45 | I57: 0.99 | J57: 0.74
A58: 2010-11-18 | B58: 3.4 | C58: 1 | D58: 0.8 | E58: 0.8 | G58: 3.725 | H58: 0.5 | I58: 0.995 | J58: 0.745
A59: 2010-11-20 | B59: 2.8 | C59: 0 | D59: 1.9 | E59: 0.9 | G59: 3.685 | H59: 0.45 | I59: 0.985 | J59: 0.735
A60: 2010-11-22 | B60: 0.7 | C60: 0 | D60: 0 | E60: 0 | G60: 3.67 | H60: 0.45 | I60: 0.985 | J60: 0.785
A61: 2010-11-26 | B61: 4.9 | C61: 0 | D61: 0 | E61: -2 | G61: 3.6 | H61: 0.45 | I61: 0.985 | J61: 0.685
A62: 2010-11-27 | B62: 1.1 | C62: 0 | D62: 0.9 | E62: 0.9 | G62: 3.31 | H62: 0.45 | I62: 0.93 | J62: 0.63
A63: 2010-11-30 | B63: 0 | C63: 0 | D63: 0 | E63: 0 | G63: 3.19 | H63: 0.45 | I63: 0.93 | J63: 0.63
A64: 2010-12-02 | B64: 2.2 | C64: 0 | D64: 0 | E64: -1 | G64: 3.005 | H64: 0.4 | I64: 0.88 | J64: 0.53
A65: 2010-12-04 | B65: 0.8 | C65: 0 | D65: 0.9 | E65: 0.9 | G65: 2.905 | H65: 0.4 | I65: 0.925 | J65: 0.575
A66: 2010-12-06 | B66: 0 | C66: 0 | D66: 0 | E66: 0 | G66: 2.735 | H66: 0.4 | I66: 0.925 | J66: 0.625
A67: 2010-12-08 | B67: 3.5 | C67: 1 | D67: 1.9 | E67: 0.9 | G67: 2.78 | H67: 0.45 | I67: 0.975 | J67: 0.625
A68: 2010-12-09 | B68: 4.4 | C68: 0 | D68: 0 | E68: 0 | G68: 2.875 | H68: 0.45 | I68: 0.975 | J68: 0.625
A69: 2010-12-11 | B69: 3.4 | C69: 0 | D69: 0.8 | E69: 0.8 | G69: 2.83 | H69: 0.45 | I69: 0.85 | J69: 0.55
A70: 2010-12-14 | B70: 4.6 | C70: 1 | D70: 2.8 | E70: 2.8 | G70: 2.915 | H70: 0.5 | I70: 0.99 | J70: 0.69
A71: 2010-12-16 | B71: 0.8 | C71: 0 | D71: 0 | E71: 0 | G71: 2.795 | H71: 0.5 | I71: 0.99 | J71: 0.69
A72: 2010-12-18 | B72: 2.9 | C72: 0 | D72: 1 | E72: 1 | G72: =AVERAGE(B53:B72) -> 2.75 | H72: 0.45 | I72: 0.99 | J72: 0.69
A73: 2010-12-20 | B73: 2.7 | C73: 0 | D73: 0 | E73: 0 | G73: 2.785 | H73: 0.45 | I73: 0.99 | J73: 0.69
A74: 2010-12-26 | B74: 2.3 | C74: 0 | D74: 0 | E74: 0 | G74: 2.635 | H74: 0.45 | I74: 0.95 | J74: 0.65
A75: 2010-12-28 | B75: 6.2 | C75: 0 | D75: 0 | E75: 0 | G75: 2.655 | H75: 0.3 | I75: 0.765 | J75: 0.465
A76: 2010-12-30 | B76: 0.4 | C76: 1 | D76: 1 | E76: 1 | G76: 2.575 | H76: 0.25 | I76: 0.725 | J76: 0.475
A77: 2011-01-01 | B77: 3.5 | C77: 0 | D77: 2.1 | E77: 2.1 | G77: 2.53 | H77: 0.2 | I77: 0.705 | J77: 0.455
A78: 2011-01-03 | B78: 1.1 | C78: 0 | D78: 0 | E78: 0 | G78: 2.415 | H78: 0.15 | I78: 0.665 | J78: 0.415
A79: 2011-01-06 | B79: 1.6 | C79: 0 | D79: 0 | E79: -1 | G79: 2.355 | H79: 0.15 | I79: 0.57 | J79: 0.32
A80: 2011-01-07 | B80: 2.6 | C80: 0 | D80: 1 | E80: 1 | G80: 2.45 | H80: 0.15 | I80: 0.62 | J80: 0.37
A81: 2011-01-10 | B81: 1 | C81: 0 | D81: 0 | E81: 0 | G81: 2.255 | H81: 0.15 | I81: 0.62 | J81: 0.47
A82: 2011-01-11 | B82: 1.4 | C82: 1 | D82: 0.9 | E82: 0.9 | G82: 2.27 | H82: 0.2 | I82: 0.62 | J82: 0.47
A83: 2011-01-13 | B83: 3 | C83: 0 | D83: 1 | E83: 1 | G83: 2.42 | H83: 0.2 | I83: 0.67 | J83: 0.52
A84: 2011-01-15 | B84: 1.9 | C84: 0 | D84: 0 | E84: 0 | G84: 2.405 | H84: 0.2 | I84: 0.67 | J84: 0.57
A85: 2011-01-19 | B85: 3.3 | C85: 1 | D85: 0.9 | E85: 0.9 | G85: 2.53 | H85: 0.25 | I85: 0.67 | J85: 0.57
A86: 2011-01-20 | B86: 1.8 | C86: 0 | D86: 0 | E86: 0 | G86: 2.62 | H86: 0.25 | I86: 0.67 | J86: 0.57
A87: 2011-01-22 | B87: 1.8 | C87: 0 | D87: 0 | E87: 0 | G87: 2.535 | H87: 0.2 | I87: 0.575 | J87: 0.525
A88: 2011-01-24 | B88: 4.5 | C88: 1 | D88: 2 | E88: 2 | G88: =AVERAGE(B69:B88) -> 2.54 | H88: 0.25 | I88: 0.675 | J88: 0.625
A89: 2011-01-25 | B89: 2 | C89: 0 | D89: 0 | E89: 0 | G89: 2.47 | H89: 0.25 | I89: 0.635 | J89: 0.585
A90: 2011-02-01 | B90: 2.2 | C90: 0 | D90: 0 | E90: 0 | G90: 2.35 | H90: 0.2 | I90: 0.495 | J90: 0.445
A91: 2011-02-03 | B91: 2.4 | C91: 0 | D91: 2 | E91: 2 | G91: 2.43 | H91: 0.2 | I91: 0.595 | J91: 0.545
A92: 2011-02-05 | B92: 2 | C92: 0 | D92: 0 | E92: 0 | G92: 2.385 | H92: 0.2 | I92: 0.545 | J92: 0.495
A93: 2011-02-07 | B93: 0.5 | C93: 0 | D93: 0 | E93: 0 | G93: 2.275 | H93: 0.2 | I93: 0.545 | J93: 0.495
A94: 2011-02-08 | B94: 1.5 | C94: 0 | D94: 0 | E94: -1 | G94: 2.235 | H94: 0.2 | I94: 0.545 | J94: 0.445
A95: 2011-02-10 | B95: 4.8 | C95: 0 | D95: 0 | E95: 0 | G95: 2.165 | H95: 0.2 | I95: 0.545 | J95: 0.445
A96: 2011-02-12 | B96: 2.9 | C96: 0 | D96: 2.9 | E96: 2.9 | G96: 2.29 | H96: 0.15 | I96: 0.64 | J96: 0.54
A97: 2011-02-15 | B97: 1.6 | C97: 0 | D97: 3 | E97: 3 | G97: 2.195 | H97: 0.15 | I97: 0.685 | J97: 0.585
A98: 2011-02-16 | B98: 2.5 | C98: 1 | D98: 1.2 | E98: 1.2 | G98: 2.265 | H98: 0.2 | I98: 0.745 | J98: 0.645
A99: 2011-02-19 | B99: 5.5 | C99: 1 | D99: 0.8 | E99: 0.8 | G99: 2.46 | H99: 0.25 | I99: 0.785 | J99: 0.735
A100: 2011-02-22 | B100: 3.6 | C100: 0 | D100: 0.8 | E100: 0.8 | G100: 2.51 | H100: 0.25 | I100: 0.775 | J100: 0.725
A101: 2011-02-24 | B101: 7 | C101: 0 | D101: 2 | E101: 2 | G101: 2.81 | H101: 0.25 | I101: 0.875 | J101: 0.825
A102: 2011-02-26 | B102: 5.9 | C102: 0 | D102: 2 | E102: 0 | G102: 3.035 | H102: 0.2 | I102: 0.93 | J102: 0.78
A103: 2011-02-27 | B103: 5.1 | C103: 0 | D103: 0 | E103: -2 | G103: 3.14 | H103: 0.2 | I103: 0.88 | J103: 0.63
A104: 2011-03-02 | B104: 4.4 | C104: 0 | D104: 0 | E104: 0 | G104: =AVERAGE(B85:B104) -> 3.265 | H104: 0.2 | I104: 0.88 | J104: 0.63
A105: 2011-03-03 | B105: 6.7 | C105: 0 | D105: 1 | E105: 0 | G105: 3.435 | H105: 0.15 | I105: 0.885 | J105: 0.585
A106: 2011-03-05 | B106: 3.8 | C106: 0 | D106: 1.9 | E106: 1.9 | G106: 3.535 | H106: 0.15 | I106: 0.98 | J106: 0.68
A107: 2011-03-08 | B107: 3 | C107: 0 | D107: 0 | E107: 0 | G107: 3.595 | H107: 0.15 | I107: 0.98 | J107: 0.68
A108: 2011-03-10 | B108: 1.8 | C108: 0 | D108: 0 | E108: 0 | G108: 3.46 | H108: 0.1 | I108: 0.88 | J108: 0.58
A109: 2011-03-12 | B109: 1.4 | C109: 0 | D109: 2.2 | E109: 2.2 | G109: 3.43 | H109: 0.1 | I109: 0.99 | J109: 0.69
A110: 2011-03-14 | B110: 4.1 | C110: 0 | D110: 0.9 | E110: 0.9 | G110: 3.525 | H110: 0.1 | I110: 1.035 | J110: 0.735
A111: 2011-03-16 | B111: 0 | C111: 0 | D111: 0 | E111: 0 | G111: 3.405 | H111: 0.1 | I111: 0.935 | J111: 0.635
A112: 2011-03-17 | B112: 1.4 | C112: 0 | D112: 0 | E112: 0 | G112: 3.375 | H112: 0.1 | I112: 0.935 | J112: 0.635
A113: 2011-03-19 | B113: 0 | C113: 0 | D113: 0 | E113: 0 | G113: 3.35 | H113: 0.1 | I113: 0.935 | J113: 0.635
A114: 2011-03-22 | B114: 3.3 | C114: 0 | D114: 1.1 | E114: 0.1 | G114: 3.44 | H114: 0.1 | I114: 0.99 | J114: 0.69
A115: 2011-03-24 | B115: 1.5 | C115: 0 | D115: 0 | E115: 0 | G115: 3.275 | H115: 0.1 | I115: 0.99 | J115: 0.69
A116: 2011-03-26 | B116: 1.9 | C116: 0 | D116: 0 | E116: 0 | G116: 3.225 | H116: 0.1 | I116: 0.845 | J116: 0.545
A117: 2011-03-29 | B117: 3.8 | C117: 0 | D117: 1.7 | E117: 1.7 | G117: 3.335 | H117: 0.1 | I117: 0.78 | J117: 0.48
A118: 2011-03-31 | B118: 3.2 | C118: 0 | D118: 1 | E118: 0 | G118: 3.37 | H118: 0.05 | I118: 0.77 | J118: 0.42
A119: 2011-04-02 | B119: 3.6 | C119: 1 | D119: 1.9 | E119: 1.9 | G119: 3.275 | H119: 0.05 | I119: 0.825 | J119: 0.475
A120: 2011-04-05 | B120: 1.2 | C120: 0 | D120: 0 | E120: 0 | G120: =AVERAGE(B101:B120) -> 3.155 | H120: 0.05 | I120: 0.785 | J120: 0.435
A121: 2011-04-06 | B121: 0 | C121: 0 | D121: 0 | E121: 0 | G121: 2.805 | H121: 0.05 | I121: 0.685 | J121: 0.335
A122: 2011-04-09 | B122: 2.7 | C122: 0 | D122: 0 | E122: -1 | G122: 2.645 | H122: 0.05 | I122: 0.585 | J122: 0.285
A123: 2011-10-06 | B123: 4.2 | C123: 0 | D123: 3.9 | E123: 3.9 | G123: 2.6 | H123: 0.05 | I123: 0.78 | J123: 0.58
A124: 2011-10-08 | B124: 6.6 | C124: 1 | D124: 1.8 | E124: 0.8 | G124: 2.71 | H124: 0.1 | I124: 0.87 | J124: 0.62
A125: 2011-10-15 | B125: 3.7 | C125: 0 | D125: 0.8 | E125: 0.8 | G125: 2.56 | H125: 0.1 | I125: 0.86 | J125: 0.66
A126: 2011-10-17 | B126: 3.8 | C126: 0 | D126: 0 | E126: 0 | G126: 2.56 | H126: 0.1 | I126: 0.765 | J126: 0.565
A127: 2011-10-19 | B127: 2.5 | C127: 0 | D127: 0 | E127: 0 | G127: 2.535 | H127: 0.1 | I127: 0.765 | J127: 0.565
A128: 2011-10-20 | B128: 0.8 | C128: 0 | D128: 0.8 | E128: -0.2 | G128: 2.485 | H128: 0.1 | I128: 0.805 | J128: 0.555
A129: 2011-10-27 | B129: 0 | C129: 0 | D129: 0 | E129: 0 | G129: 2.415 | H129: 0.1 | I129: 0.695 | J129: 0.445
A130: 2011-10-29 | B130: 0 | C130: 0 | D130: 0 | E130: 0 | G130: 2.21 | H130: 0.1 | I130: 0.65 | J130: 0.4
A131: 2011-10-30 | B131: 0 | C131: 0 | D131: 0 | E131: 0 | G131: 2.21 | H131: 0.1 | I131: 0.65 | J131: 0.4
A132: 2011-11-02 | B132: 0.2 | C132: 0 | D132: 0 | E132: 0 | G132: 2.15 | H132: 0.1 | I132: 0.65 | J132: 0.4
A133: 2011-11-03 | B133: 0.8 | C133: 0 | D133: 0 | E133: 0 | G133: 2.19 | H133: 0.1 | I133: 0.65 | J133: 0.4
A134: 2011-11-05 | B134: 0.8 | C134: 0 | D134: 0 | E134: 0 | G134: 2.065 | H134: 0.1 | I134: 0.595 | J134: 0.395
A135: 2011-11-08 | B135: 1.8 | C135: 1 | D135: 0.9 | E135: 0.9 | G135: 2.08 | H135: 0.15 | I135: 0.64 | J135: 0.44
A136: 2011-11-10 | B136: 1.8 | C136: 0 | D136: 2.2 | E136: 2.2 | G136: =AVERAGE(B117:B136) -> 2.075 | H136: 0.15 | I136: 0.75 | J136: 0.55
A137: 2011-11-12 | B137: 6.1 | C137: 0 | D137: 1.5 | E137: 1.5 | G137: 2.19 | H137: 0.15 | I137: 0.74 | J137: 0.54
A138: 2011-11-15 | B138: 1.7 | C138: 0 | D138: 0.8 | E138: 0.8 | G138: 2.115 | H138: 0.15 | I138: 0.73 | J138: 0.58
A139: 2011-11-17 | B139: 2 | C139: 0 | D139: 1.1 | E139: 1.1 | G139: 2.035 | H139: 0.1 | I139: 0.69 | J139: 0.54
A140: 2011-11-19 | B140: 3.9 | C140: 2 | D140: 5.8 | E140: 4.8 | G140: 2.17 | H140: 0.2 | I140: 0.98 | J140: 0.78
A141: 2011-11-20 | B141: 0 | C141: 0 | D141: 0 | E141: 0 | G141: 2.17 | H141: 0.2 | I141: 0.98 | J141: 0.78
A142: 2011-11-22 | B142: 3.2 | C142: 1 | D142: 1.9 | E142: 1.9 | G142: 2.195 | H142: 0.25 | I142: 1.075 | J142: 0.925
A143: 2011-11-25 | B143: 5.1 | C143: 2 | D143: 4.1 | E143: 4.1 | G143: 2.24 | H143: 0.35 | I143: 1.085 | J143: 0.935
A144: 2011-11-27 | B144: 5.3 | C144: 1 | D144: 1 | E144: 0 | G144: 2.175 | H144: 0.35 | I144: 1.045 | J144: 0.895
A145: 2011-11-30 | B145: 2.2 | C145: 1 | D145: 0.9 | E145: 0.9 | G145: 2.1 | H145: 0.4 | I145: 1.05 | J145: 0.9
A146: 2011-12-03 | B146: 3.3 | C146: 0 | D146: 0 | E146: 0 | G146: 2.075 | H146: 0.4 | I146: 1.05 | J146: 0.9
A147: 2011-12-05 | B147: 3.3 | C147: 0 | D147: 1 | E147: 1 | G147: 2.115 | H147: 0.4 | I147: 1.1 | J147: 0.95
A148: 2011-12-06 | B148: 2.1 | C148: 1 | D148: 0.7 | E148: 0.7 | G148: 2.18 | H148: 0.45 | I148: 1.095 | J148: 0.995
A149: 2011-12-09 | B149: 2.3 | C149: 0 | D149: 0 | E149: 0 | G149: 2.295 | H149: 0.45 | I149: 1.095 | J149: 0.995
A150: 2011-12-13 | B150: 2.2 | C150: 0 | D150: 0 | E150: 0 | G150: 2.405 | H150: 0.45 | I150: 1.095 | J150: 0.995
A151: 2011-12-16 | B151: 2.9 | C151: 0 | D151: 1 | E151: 1 | G151: 2.55 | H151: 0.45 | I151: 1.145 | J151: 1.045
A152: 2011-12-17 | B152: 0.7 | C152: 0 | D152: 1 | E152: 1 | G152: =AVERAGE(B133:B152) -> 2.575 | H152: 0.45 | I152: 1.195 | J152: 1.095
A153: 2011-12-19 | B153: 3.7 | C153: 0 | D153: 0.9 | E153: -0.1 | G153: 2.72 | H153: 0.45 | I153: 1.24 | J153: 1.09
A154: 2011-12-22 | B154: 5.5 | C154: 0 | D154: 0.8 | E154: 0.8 | G154: 2.955 | H154: 0.45 | I154: 1.28 | J154: 1.13
A155: 2011-12-23 | B155: 0.7 | C155: 0 | D155: 0 | E155: 0 | G155: 2.9 | H155: 0.4 | I155: 1.235 | J155: 1.085
A156: 2011-12-27 | B156: 4 | C156: 0 | D156: 0 | E156: 0 | G156: 3.01 | H156: 0.4 | I156: 1.125 | J156: 0.975
A157: 2011-12-29 | B157: 6.9 | C157: 0 | D157: 2.1 | E157: 2.1 | G157: 3.05 | H157: 0.4 | I157: 1.155 | J157: 1.005
A158: 2012-01-17 | B158: 2.9 | C158: 1 | D158: 1.6 | E158: 1.6 | G158: 3.11 | H158: 0.45 | I158: 1.195 | J158: 1.045
A159: 2012-01-19 | B159: 6.6 | C159: 0 | D159: 1 | E159: 1 | G159: 3.34 | H159: 0.45 | I159: 1.19 | J159: 1.04
A160: 2012-01-21 | B160: 1.1 | C160: 0 | D160: 0 | E160: 0 | G160: 3.2 | H160: 0.35 | I160: 0.9 | J160: 0.8
A161: 2012-01-23 | B161: 3 | C161: 1 | D161: 2.8 | E161: 2.8 | G161: 3.35 | H161: 0.4 | I161: 1.04 | J161: 0.94
A162: 2012-01-24 | B162: 1.1 | C162: 0 | D162: 0 | E162: 0 | G162: 3.245 | H162: 0.35 | I162: 0.945 | J162: 0.845
A163: 2012-01-31 | B163: 2.2 | C163: 0 | D163: 0 | E163: 0 | G163: 3.1 | H163: 0.25 | I163: 0.74 | J163: 0.64
A164: 2012-02-01 | B164: 4.8 | C164: 0 | D164: 0 | E164: 0 | G164: 3.075 | H164: 0.2 | I164: 0.69 | J164: 0.64
A165: 2012-02-04 | B165: 3.3 | C165: 1 | D165: 4.4 | E165: 4.4 | G165: 3.13 | H165: 0.2 | I165: 0.865 | J165: 0.815
A166: 2012-02-07 | B166: 2.9 | C166: 0 | D166: 0 | E166: 0 | G166: 3.11 | H166: 0.2 | I166: 0.865 | J166: 0.815
A167: 2012-02-09 | B167: 2.7 | C167: 1 | D167: 2 | E167: 2 | G167: 3.08 | H167: 0.25 | I167: 0.915 | J167: 0.865
A168: 2012-02-11 | B168: 6.4 | C168: 0 | D168: 0 | E168: 0 | G168: =AVERAGE(B149:B168) -> 3.295 | H168: 0.2 | I168: 0.88 | J168: 0.83
A169: 2012-02-14 | B169: 2.9 | C169: 1 | D169: 1.2 | E169: 1.2 | G169: 3.325 | H169: 0.25 | I169: 0.94 | J169: 0.89
A170: 2012-02-15 | B170: 2.4 | C170: 0 | D170: 1 | E170: 1 | G170: 3.335 | H170: 0.25 | I170: 0.99 | J170: 0.94
A171: 2012-02-18 | B171: 2 | C171: 0 | D171: 2.6 | E171: 2.6 | G171: 3.29 | H171: 0.25 | I171: 1.07 | J171: 1.02
A172: 2012-02-21 | B172: 2.5 | C172: 2 | D172: 1.7 | E172: 0.7 | G172: 3.38 | H172: 0.35 | I172: 1.105 | J172: 1.005
A173: 2012-02-25 | B173: 4.9 | C173: 1 | D173: 1.5 | E173: 0.5 | G173: 3.44 | H173: 0.4 | I173: 1.135 | J173: 1.035
A174: 2012-02-28 | B174: 3.6 | C174: 0 | D174: 2 | E174: 2 | G174: 3.345 | H174: 0.4 | I174: 1.195 | J174: 1.095
A175: 2012-02-29 | B175: 1.8 | C175: 0 | D175: 1 | E175: 1 | G175: 3.4 | H175: 0.4 | I175: 1.245 | J175: 1.145
A176: 2012-03-03 | B176: 2.1 | C176: 0 | D176: 0 | E176: 0 | G176: 3.305 | H176: 0.4 | I176: 1.245 | J176: 1.145
A177: 2012-03-06 | B177: 3.1 | C177: 0 | D177: 1.8 | E177: 1.8 | G177: 3.115 | H177: 0.4 | I177: 1.23 | J177: 1.13
A178: 2012-03-07 | B178: 3.7 | C178: 0 | D178: 1 | E178: 1 | G178: 3.155 | H178: 0.35 | I178: 1.2 | J178: 1.1
A179: 2012-03-10 | B179: 4.3 | C179: 1 | D179: 0.8 | E179: -0.2 | G179: 3.04 | H179: 0.4 | I179: 1.19 | J179: 1.04
A180: 2012-03-11 | B180: 0.4 | C180: 0 | D180: 0 | E180: -1 | G180: 3.005 | H180: 0.4 | I180: 1.19 | J180: 0.99
A181: 2012-03-13 | B181: 3.3 | C181: 0 | D181: 0 | E181: 0 | G181: 3.02 | H181: 0.35 | I181: 1.05 | J181: 0.85
A182: 2012-03-15 | B182: 6.7 | C182: 2 | D182: 4.4 | E182: 4.4 | G182: 3.3 | H182: 0.45 | I182: 1.27 | J182: 1.07
A183: 2012-03-17 | B183: 2.8 | C183: 0 | D183: 0 | E183: 0 | G183: 3.33 | H183: 0.45 | I183: 1.27 | J183: 1.07
A184: 2012-03-19 | B184: 1.9 | C184: 0 | D184: 0 | E184: 0 | G184: =AVERAGE(B165:B184) -> 3.185 | H184: 0.45 | I184: 1.27 | J184: 1.07
A185: 2012-03-20 | B185: 1.5 | C185: 0 | D185: 0 | E185: 0 | G185: 3.095 | H185: 0.4 | I185: 1.05 | J185: 0.85
A186: 2012-03-24 | B186: 4.7 | C186: 0 | D186: 0.8 | E186: 0.8 | G186: 3.185 | H186: 0.4 | I186: 1.09 | J186: 0.89
A187: 2012-03-27 | B187: 1.6 | C187: 1 | D187: 0.8 | E187: 0.8 | G187: 3.13 | H187: 0.4 | I187: 1.03 | J187: 0.83
A188: 2012-03-29 | B188: 3.7 | C188: 0 | D188: 0 | E188: 0 | G188: 2.995 | H188: 0.4 | I188: 1.03 | J188: 0.83
A189: 2012-03-31 | B189: 2.8 | C189: 0 | D189: 0 | E189: 0 | G189: 2.99 | H189: 0.35 | I189: 0.97 | J189: 0.77
A190: 2012-04-03 | B190: 1.2 | C190: 0 | D190: 0 | E190: 0 | G190: 2.93 | H190: 0.35 | I190: 0.92 | J190: 0.72
A191: 2012-04-05 | B191: 2 | C191: 0 | D191: 0.7 | E191: -0.3 | G191: 2.93 | H191: 0.35 | I191: 0.825 | J191: 0.575
A192: 2012-04-07 | B192: 5.1 | C192: 0 | D192: 0 | E192: 0 | G192: 3.06 | H192: 0.25 | I192: 0.74 | J192: 0.54
A193: 2013-01-19 | B193: 3.1 | C193: 1 | D193: 1.8 | E193: 1.8 | G193: 2.97 | H193: 0.25 | I193: 0.755 | J193: 0.605
A194: 2013-01-21 | B194: 4.2 | C194: 0 | D194: 1.7 | E194: 1.7 | G194: 3 | H194: 0.25 | I194: 0.74 | J194: 0.59
A195: 2013-01-23 | B195: 6 | C195: 1 | D195: 3 | E195: 2 | G195: 3.21 | H195: 0.3 | I195: 0.84 | J195: 0.64
A196: 2013-01-24 | B196: 3.5 | C196: 1 | D196: 0.9 | E196: 0.9 | G196: 3.28 | H196: 0.35 | I196: 0.885 | J196: 0.685
A197: 2013-01-26 | B197: 3 | C197: 0 | D197: 0 | E197: 0 | G197: 3.275 | H197: 0.35 | I197: 0.795 | J197: 0.595
A198: 2013-01-29 | B198: 1.7 | C198: 0 | D198: 0 | E198: 0 | G198: 3.175 | H198: 0.35 | I198: 0.745 | J198: 0.545
A199: 2013-01-31 | B199: 8.8 | C199: 0 | D199: 1 | E199: 1 | G199: 3.4 | H199: 0.3 | I199: 0.755 | J199: 0.605
A200: 2013-02-02 | B200: 2.1 | C200: 0 | D200: 0.9 | E200: 0.9 | G200: =AVERAGE(B181:B200) -> 3.485 | H200: 0.3 | I200: 0.8 | J200: 0.7
A201: 2013-02-04 | B201: 5.1 | C201: 0 | D201: 1.9 | E201: 1.9 | G201: 3.575 | H201: 0.3 | I201: 0.895 | J201: 0.795
... 254 more rows
